[Event "Titled Tuesday Blitz August 15 Late 2023"]
[White "Poltorak, Sebastian"]
[Black "Bazilius, Augustinas"]
[WhiteFideId "1199498"]
[BlackFideId "12832251"]
[WhiteElo "2562"]
[BlackElo "2494"]
[Result "0-1"]
[Round "10"]
[TimeControl "180+1"]
[Date "2023.08.15"]
[WhiteClock "0:00:23"]
[BlackClock "0:00:58"]
[Board "37"]

1. e4 {[%clk 0:03:00]}  a6 {[%clk 0:02:49]} 2. d4 {[%clk 0:02:52]}  d5 {[%clk 0:02:47]} 3. exd5 {[%clk 0:02:49]}  Qxd5 {[%clk 0:02:47]} 4. Nc3 {[%clk 0:02:49]}  Qd8 {[%clk 0:02:48]} 5. Nf3 {[%clk 0:02:45]}  Nf6 {[%clk 0:02:48]} 6. g3 {[%clk 0:02:45]}  c5 {[%clk 0:02:45]} 7. Bg2 {[%clk 0:02:44]}  cxd4 {[%clk 0:02:37]} 8. Nxd4 {[%clk 0:02:33]}  e5 {[%clk 0:02:37]} 9. Nf3 {[%clk 0:02:32]}  Qxd1+ {[%clk 0:02:38]} 10. Nxd1 {[%clk 0:02:32]}  Nc6 {[%clk 0:02:32]} 11. O-O {[%clk 0:02:29]}  Bd6 {[%clk 0:02:31]} 12. Ne3 {[%clk 0:02:25]}  Be6 {[%clk 0:02:30]} 13. Ng5 {[%clk 0:02:20]}  Bc8 {[%clk 0:02:30]} 14. Nc4 {[%clk 0:02:20]}  Bc7 {[%clk 0:02:16]} 15. Re1 {[%clk 0:01:59]}  h6 {[%clk 0:02:11]} 16. Bxc6+ {[%clk 0:01:42]}  bxc6 {[%clk 0:02:10]} 17. Nxe5 {[%clk 0:01:40]}  hxg5 {[%clk 0:02:01]} 18. Ng6+ {[%clk 0:01:39]}  Be6 {[%clk 0:01:47]} 19. Nxh8 {[%clk 0:01:39]}  Ke7 {[%clk 0:01:45]} 20. Nxf7 {[%clk 0:01:36]}  Kxf7 {[%clk 0:01:46]} 21. Bxg5 {[%clk 0:01:35]}  Rb8 {[%clk 0:01:37]} 22. b3 {[%clk 0:01:35]}  Ba5 {[%clk 0:01:36]} 23. Bf4 {[%clk 0:01:23]}  Rh8 {[%clk 0:01:20]} 24. Re3 {[%clk 0:01:05]}  Ng4 {[%clk 0:01:20]} 25. Rd3 {[%clk 0:00:48]}  Bf5 {[%clk 0:01:16]} 26. Rd6 {[%clk 0:00:47]}  Rxh2 {[%clk 0:01:07]} 27. Be3 {[%clk 0:00:35]}  Be4 {[%clk 0:01:04]} 28. f3 {[%clk 0:00:27]}  Bxf3 {[%clk 0:01:04]} 29. Kf1 {[%clk 0:00:23]}  Nxe3+ {[%clk 0:00:58]} 0-1


[Site "https://www.chess.com"]

[Event "Titled Tuesday Blitz August 15 Late 2023"]
[White "RrainlessBobot"]
[Black "djathtaspogradec"]
[WhiteElo "2558"]
[BlackElo "2483"]
[Result "1-0"]
[Round "10"]
[TimeControl "180+1"]
[Date "2023.08.15"]
[WhiteClock "0:01:24"]
[BlackClock "0:01:29"]
[Board "38"]

1. Nf3 {[%clk 0:02:56]}  Nf6 {[%clk 0:02:59]} 2. g3 {[%clk 0:02:56]}  e6 {[%clk 0:02:57]} 3. Bg2 {[%clk 0:02:57]}  d5 {[%clk 0:02:57]} 4. O-O {[%clk 0:02:57]}  Be7 {[%clk 0:02:57]} 5. d3 {[%clk 0:02:57]}  O-O {[%clk 0:02:57]} 6. Nbd2 {[%clk 0:02:58]}  c5 {[%clk 0:02:57]} 7. e4 {[%clk 0:02:58]}  Nc6 {[%clk 0:02:58]} 8. Re1 {[%clk 0:02:59]}  dxe4 {[%clk 0:02:57]} 9. dxe4 {[%clk 0:02:59]}  Qc7 {[%clk 0:02:57]} 10. c3 {[%clk 0:02:58]}  b6 {[%clk 0:02:54]} 11. Qe2 {[%clk 0:02:58]}  a5 {[%clk 0:02:54]} 12. a4 {[%clk 0:02:52]}  Ba6 {[%clk 0:02:53]} 13. Qd1 {[%clk 0:02:52]}  Rfd8 {[%clk 0:02:52]} 14. Bf1 {[%clk 0:02:52]}  Bxf1 {[%clk 0:02:51]} 15. Kxf1 {[%clk 0:02:52]}  Ne5 {[%clk 0:02:49]} 16. Nxe5 {[%clk 0:02:50]}  Qxe5 {[%clk 0:02:49]} 17. Qe2 {[%clk 0:02:48]}  h5 {[%clk 0:02:40]} 18. Nc4 {[%clk 0:02:46]}  Qc7 {[%clk 0:02:40]} 19. e5 {[%clk 0:02:35]}  Qc6 {[%clk 0:02:35]} 20. Kg1 {[%clk 0:02:28]}  Nd7 {[%clk 0:02:30]} 21. Qxh5 {[%clk 0:02:28]}  b5 {[%clk 0:02:26]} 22. axb5 {[%clk 0:02:26]}  Qxb5 {[%clk 0:02:27]} 23. Qg4 {[%clk 0:02:19]}  Nf8 {[%clk 0:02:24]} 24. h4 {[%clk 0:02:15]}  a4 {[%clk 0:02:15]} 25. h5 {[%clk 0:02:15]}  Rd3 {[%clk 0:01:54]} 26. Bh6 {[%clk 0:02:05]}  g6 {[%clk 0:01:54]} 27. Bxf8 {[%clk 0:02:00]}  Kxf8 {[%clk 0:01:54]} 28. hxg6 {[%clk 0:02:00]}  fxg6 {[%clk 0:01:52]} 29. Qxe6 {[%clk 0:01:50]}  Ra6 {[%clk 0:01:51]} 30. Qg4 {[%clk 0:01:50]}  Qe8 {[%clk 0:01:46]} 31. Rad1 {[%clk 0:01:44]}  Rxd1 {[%clk 0:01:42]} 32. Rxd1 {[%clk 0:01:45]}  Kg7 {[%clk 0:01:33]} 33. Rd7 {[%clk 0:01:29]}  Kg8 {[%clk 0:01:33]} 34. Rxe7 {[%clk 0:01:24]}  Qxe7 {[%clk 0:01:29]} 35. Qc8+ {[%clk 0:01:24]} 1-0


[Site "https://www.chess.com"]

[Event "Titled Tuesday Blitz August 15 Late 2023"]
[White "Tsyhanchuk, Stanislav"]
[Black "Gamayev, Oleg"]
[WhiteFideId "13505130"]
[BlackFideId "2802813"]
[WhiteElo "2466"]
[BlackElo "2574"]
[Result "1/2-1/2"]
[Round "10"]
[TimeControl "180+1"]
[Date "2023.08.15"]
[WhiteClock "0:00:06"]
[BlackClock "0:01:39"]
[Board "44"]

1. c4 {[%clk 0:03:00]}  d6 {[%clk 0:03:00]} 2. Nc3 {[%clk 0:03:00]}  Nf6 {[%clk 0:03:01]} 3. d4 {[%clk 0:03:00]}  e5 {[%clk 0:03:02]} 4. dxe5 {[%clk 0:03:00]}  dxe5 {[%clk 0:03:03]} 5. Qxd8+ {[%clk 0:03:00]}  Kxd8 {[%clk 0:03:04]} 6. Nf3 {[%clk 0:02:53]}  Nfd7 {[%clk 0:03:03]} 7. Be3 {[%clk 0:02:30]}  f6 {[%clk 0:03:03]} 8. O-O-O {[%clk 0:02:27]}  c6 {[%clk 0:03:04]} 9. g3 {[%clk 0:02:26]}  Kc7 {[%clk 0:03:03]} 10. h4 {[%clk 0:02:26]}  Na6 {[%clk 0:03:04]} 11. a3 {[%clk 0:02:24]}  Bc5 {[%clk 0:03:03]} 12. Bxc5 {[%clk 0:02:22]}  Naxc5 {[%clk 0:03:04]} 13. b4 {[%clk 0:02:21]}  Ne6 {[%clk 0:03:04]} 14. e3 {[%clk 0:02:19]}  a5 {[%clk 0:03:04]} 15. Kb2 {[%clk 0:02:14]}  axb4 {[%clk 0:03:04]} 16. axb4 {[%clk 0:02:15]}  Nb6 {[%clk 0:03:04]} 17. Ra1 {[%clk 0:02:08]}  Rxa1 {[%clk 0:03:01]} 18. Kxa1 {[%clk 0:02:09]}  Bd7 {[%clk 0:03:01]} 19. Be2 {[%clk 0:02:08]}  Ra8+ {[%clk 0:03:00]} 20. Kb2 {[%clk 0:02:09]}  Na4+ {[%clk 0:03:01]} 21. Nxa4 {[%clk 0:02:08]}  Rxa4 {[%clk 0:03:02]} 22. Kb3 {[%clk 0:02:07]}  c5 {[%clk 0:03:03]} 23. b5 {[%clk 0:02:05]}  Rb4+ {[%clk 0:03:00]} 24. Kc3 {[%clk 0:02:04]}  Nd8 {[%clk 0:02:54]} 25. Rd1 {[%clk 0:01:59]}  Be6 {[%clk 0:02:52]} 26. Ne1 {[%clk 0:01:57]}  Nf7 {[%clk 0:02:46]} 27. Ra1 {[%clk 0:01:50]}  Nd6 {[%clk 0:02:44]} 28. Nc2 {[%clk 0:01:50]}  Bxc4 {[%clk 0:02:37]} 29. Nxb4 {[%clk 0:01:50]}  cxb4+ {[%clk 0:02:38]} 30. Kd2 {[%clk 0:01:49]}  Bxe2 {[%clk 0:02:37]} 31. Kxe2 {[%clk 0:01:50]}  Nxb5 {[%clk 0:02:38]} 32. Kd3 {[%clk 0:01:47]}  Kc6 {[%clk 0:02:33]} 33. Kc4 {[%clk 0:01:44]}  Na3+ {[%clk 0:02:33]} 34. Kb3 {[%clk 0:01:43]}  b5 {[%clk 0:02:28]} 35. Rd1 {[%clk 0:01:36]}  Nc4 {[%clk 0:02:27]} 36. Kxb4 {[%clk 0:01:35]}  Nd6 {[%clk 0:02:27]} 37. h5 {[%clk 0:01:20]}  g6 {[%clk 0:02:25]} 38. h6 {[%clk 0:01:16]}  Ne4 {[%clk 0:02:18]} 39. Rc1+ {[%clk 0:01:14]}  Kd6 {[%clk 0:02:18]} 40. Rc2 {[%clk 0:01:13]}  f5 {[%clk 0:02:12]} 41. Kxb5 {[%clk 0:01:11]}  g5 {[%clk 0:02:12]} 42. Rc6+ {[%clk 0:01:00]}  Ke7 {[%clk 0:02:09]} 43. Rc7+ {[%clk 0:01:00]}  Kf6 {[%clk 0:02:10]} 44. Rxh7 {[%clk 0:01:00]}  Kg6 {[%clk 0:02:10]} 45. Rh8 {[%clk 0:01:00]}  Nxf2 {[%clk 0:02:09]} 46. Rf8 {[%clk 0:00:48]}  Ng4 {[%clk 0:02:01]} 47. h7 {[%clk 0:00:47]}  Kxh7 {[%clk 0:02:01]} 48. Rxf5 {[%clk 0:00:46]}  Nxe3 {[%clk 0:02:02]} 49. Rxe5 {[%clk 0:00:44]}  Nf1 {[%clk 0:01:56]} 50. Rxg5 {[%clk 0:00:43]}  Kh6 {[%clk 0:01:57]} 51. Rg4 {[%clk 0:00:40]}  Ne3 {[%clk 0:01:57]} 52. Rf4 {[%clk 0:00:35]}  Kg5 {[%clk 0:01:55]} 53. Kc5 {[%clk 0:00:34]}  Nf5 {[%clk 0:01:56]} 54. Rf3 {[%clk 0:00:18]}  Kg4 {[%clk 0:01:55]} 55. Rf4+ {[%clk 0:00:18]}  Kg5 {[%clk 0:01:55]} 56. Kd5 {[%clk 0:00:15]}  Nxg3 {[%clk 0:01:53]} 57. Ke5 {[%clk 0:00:15]}  Nh5 {[%clk 0:01:52]} 58. Rf1 {[%clk 0:00:15]}  Kg4 {[%clk 0:01:50]} 59. Rf5 {[%clk 0:00:11]}  Ng3 {[%clk 0:01:50]} 60. Rf8 {[%clk 0:00:11]}  Ne2 {[%clk 0:01:47]} 61. Ke4 {[%clk 0:00:10]}  Nc3+ {[%clk 0:01:47]} 62. Ke5 {[%clk 0:00:09]}  Kg3 {[%clk 0:01:45]} 63. Kd4 {[%clk 0:00:08]}  Nb5+ {[%clk 0:01:45]} 64. Ke3 {[%clk 0:00:08]}  Kg4 {[%clk 0:01:45]} 65. Rf6 {[%clk 0:00:05]}  Nc3 {[%clk 0:01:44]} 66. Rg6+ {[%clk 0:00:03]}  Kf5 {[%clk 0:01:43]} 67. Rd6 {[%clk 0:00:03]}  Ke5 {[%clk 0:01:43]} 68. Rh6 {[%clk 0:00:02]}  Nd5+ {[%clk 0:01:43]} 69. Kf3 {[%clk 0:00:02]}  Kd4 {[%clk 0:01:43]} 70. Rh5 {[%clk 0:00:02]}  Ne3 {[%clk 0:01:42]} 71. Rh4+ {[%clk 0:00:03]}  Kd3 {[%clk 0:01:42]} 72. Rh8 {[%clk 0:00:04]}  Nc4 {[%clk 0:01:41]} 73. Rd8+ {[%clk 0:00:04]}  Kc3 {[%clk 0:01:41]} 74. Ke2 {[%clk 0:00:05]}  Ne5 {[%clk 0:01:40]} 75. Rc8+ {[%clk 0:00:05]}  Kd4 {[%clk 0:01:40]} 76. Rd8+ {[%clk 0:00:06]}  Ke4 {[%clk 0:01:40]} 77. Ra8 {[%clk 0:00:06]}  Kd4 {[%clk 0:01:40]} 78. Ra4+ {[%clk 0:00:06]}  Nc4 {[%clk 0:01:40]} 79. Rb4 {[%clk 0:00:06]}  Kc5 {[%clk 0:01:39]} 80. Rb8 {[%clk 0:00:07]}  Kd4 {[%clk 0:01:39]} 81. Rd8+ {[%clk 0:00:07]}  Ke4 {[%clk 0:01:40]} 82. Rh8 {[%clk 0:00:06]}  Kd4 {[%clk 0:01:40]} 83. Rh4+ {[%clk 0:00:05]}  Kd5 {[%clk 0:01:40]} 84. Kd3 {[%clk 0:00:05]}  Ne5+ {[%clk 0:01:40]} 85. Ke3 {[%clk 0:00:05]}  Nc4+ {[%clk 0:01:39]} 86. Kf4 {[%clk 0:00:06]}  Kd4 {[%clk 0:01:39]} 87. Kf3+ {[%clk 0:00:06]}  Kd3 {[%clk 0:01:39]} 88. Rh8 {[%clk 0:00:06]}  Ne5+ {[%clk 0:01:39]} 89. Kf4 {[%clk 0:00:06]}  Ng6+ {[%clk 0:01:39]} 90. Kg5 {[%clk 0:00:06]}  Nxh8 {[%clk 0:01:39]} 1/2-1/2


[Site "https://www.chess.com"]

[Event "Titled Tuesday Blitz August 15 Late 2023"]
[White "Leenhouts, Koen"]
[Black "Baghdasaryan, Vahe"]
[WhiteFideId "1008439"]
[BlackFideId "13303139"]
[WhiteElo "2574"]
[BlackElo "2439"]
[Result "1-0"]
[Round "10"]
[TimeControl "180+1"]
[Date "2023.08.15"]
[WhiteClock "0:02:12"]
[BlackClock "0:00:15"]
[Board "45"]

1. e4 {[%clk 0:03:00]}  e5 {[%clk 0:02:59]} 2. Nf3 {[%clk 0:03:00]}  Nc6 {[%clk 0:03:00]} 3. Bb5 {[%clk 0:03:00]}  a6 {[%clk 0:03:00]} 4. Ba4 {[%clk 0:03:00]}  Nf6 {[%clk 0:03:00]} 5. d3 {[%clk 0:03:00]}  d6 {[%clk 0:02:57]} 6. O-O {[%clk 0:02:57]}  b5 {[%clk 0:02:57]} 7. Bb3 {[%clk 0:02:56]}  Na5 {[%clk 0:02:56]} 8. Nc3 {[%clk 0:02:49]}  Nxb3 {[%clk 0:02:56]} 9. axb3 {[%clk 0:02:50]}  Bg4 {[%clk 0:02:48]} 10. Bg5 {[%clk 0:02:48]}  Be7 {[%clk 0:02:40]} 11. Bxf6 {[%clk 0:02:47]}  gxf6 {[%clk 0:02:21]} 12. Qe2 {[%clk 0:02:44]}  Rg8 {[%clk 0:02:19]} 13. Qe3 {[%clk 0:02:43]}  f5 {[%clk 0:02:14]} 14. exf5 {[%clk 0:02:37]}  Bxf5 {[%clk 0:01:41]} 15. d4 {[%clk 0:02:36]}  Bh3 {[%clk 0:01:15]} 16. Ne1 {[%clk 0:02:33]}  exd4 {[%clk 0:01:02]} 17. Qxh3 {[%clk 0:02:31]}  dxc3 {[%clk 0:01:02]} 18. bxc3 {[%clk 0:02:32]}  Bf6 {[%clk 0:00:58]} 19. Qxh7 {[%clk 0:02:30]}  Rh8 {[%clk 0:00:50]} 20. Qe4+ {[%clk 0:02:29]}  Kf8 {[%clk 0:00:46]} 21. Qd3 {[%clk 0:02:25]}  Qd7 {[%clk 0:00:27]} 22. Nf3 {[%clk 0:02:25]}  Qg4 {[%clk 0:00:25]} 23. Rfe1 {[%clk 0:02:21]}  Rg8 {[%clk 0:00:22]} 24. g3 {[%clk 0:02:19]}  Qg7 {[%clk 0:00:19]} 25. Qe4 {[%clk 0:02:15]}  Rd8 {[%clk 0:00:15]} 26. Rxa6 {[%clk 0:02:13]}  Bxc3 {[%clk 0:00:15]} 27. Qe7# {[%clk 0:02:12]} 1-0


[Site "https://www.chess.com"]

[Event "Titled Tuesday Blitz August 15 Late 2023"]
[White "Balla, Tamas-Kristof"]
[Black "Budrewicz, Krzysztof"]
[WhiteFideId "1208497"]
[BlackFideId "1127950"]
[WhiteElo "2430"]
[BlackElo "2556"]
[Result "1-0"]
[Round "10"]
[TimeControl "180+1"]
[Date "2023.08.15"]
[WhiteClock "0:00:21"]
[BlackClock "0:00:00"]
[Board "47"]

1. e4 {[%clk 0:03:00]}  e5 {[%clk 0:02:58]} 2. Nf3 {[%clk 0:02:57]}  Nc6 {[%clk 0:02:58]} 3. d4 {[%clk 0:02:52]}  exd4 {[%clk 0:02:58]} 4. Nxd4 {[%clk 0:02:53]}  Bc5 {[%clk 0:02:56]} 5. Nb3 {[%clk 0:02:53]}  Bb6 {[%clk 0:02:56]} 6. Nc3 {[%clk 0:02:53]}  Nf6 {[%clk 0:02:56]} 7. Qe2 {[%clk 0:02:52]}  O-O {[%clk 0:02:56]} 8. Be3 {[%clk 0:02:51]}  Bxe3 {[%clk 0:02:55]} 9. Qxe3 {[%clk 0:02:52]}  Re8 {[%clk 0:02:51]} 10. f3 {[%clk 0:02:51]}  d6 {[%clk 0:02:51]} 11. O-O-O {[%clk 0:02:51]}  Be6 {[%clk 0:02:52]} 12. Nd4 {[%clk 0:02:39]}  Nxd4 {[%clk 0:02:51]} 13. Qxd4 {[%clk 0:02:40]}  Qe7 {[%clk 0:02:51]} 14. Bc4 {[%clk 0:02:40]}  a6 {[%clk 0:02:51]} 15. Bxe6 {[%clk 0:02:38]}  Qxe6 {[%clk 0:02:51]} 16. Kb1 {[%clk 0:02:35]}  h6 {[%clk 0:02:51]} 17. h4 {[%clk 0:02:34]}  Qe5 {[%clk 0:02:51]} 18. Qf2 {[%clk 0:02:31]}  b6 {[%clk 0:02:46]} 19. g4 {[%clk 0:02:29]}  Qf4 {[%clk 0:02:35]} 20. g5 {[%clk 0:02:29]}  Nxe4 {[%clk 0:02:26]} 21. Nxe4 {[%clk 0:02:14]}  Rxe4 {[%clk 0:02:26]} 22. gxh6 {[%clk 0:02:14]}  g6 {[%clk 0:02:23]} 23. h5 {[%clk 0:02:11]}  g5 {[%clk 0:02:23]} 24. Rdg1 {[%clk 0:01:53]}  f6 {[%clk 0:02:17]} 25. Rg4 {[%clk 0:01:48]}  Qe3 {[%clk 0:02:16]} 26. Qg3 {[%clk 0:01:38]}  Re6 {[%clk 0:02:03]} 27. a3 {[%clk 0:01:34]}  Kh7 {[%clk 0:01:59]} 28. Qg2 {[%clk 0:01:27]}  Qe2 {[%clk 0:01:43]} 29. Qg3 {[%clk 0:01:18]}  Re3 {[%clk 0:01:38]} 30. Rf4 {[%clk 0:01:06]}  Rf8 {[%clk 0:01:30]} 31. Rf5 {[%clk 0:01:03]}  Re5 {[%clk 0:01:24]} 32. Qg4 {[%clk 0:01:02]}  Kxh6 {[%clk 0:01:20]} 33. Rxe5 {[%clk 0:00:57]}  Qxe5 {[%clk 0:01:16]} 34. Qd7 {[%clk 0:00:57]}  Qe8 {[%clk 0:00:47]} 35. Qxc7 {[%clk 0:00:56]}  Qd8 {[%clk 0:00:47]} 36. Qb7 {[%clk 0:00:52]}  a5 {[%clk 0:00:47]} 37. Qe4 {[%clk 0:00:52]}  Qe8 {[%clk 0:00:46]} 38. Qd3 {[%clk 0:00:51]}  f5 {[%clk 0:00:26]} 39. Qxd6+ {[%clk 0:00:51]}  Kh7 {[%clk 0:00:27]} 40. h6 {[%clk 0:00:46]}  Qf7 {[%clk 0:00:19]} 41. Qxb6 {[%clk 0:00:45]}  Qf6 {[%clk 0:00:18]} 42. Qxa5 {[%clk 0:00:44]}  Rf7 {[%clk 0:00:14]} 43. Qd2 {[%clk 0:00:39]}  g4 {[%clk 0:00:12]} 44. fxg4 {[%clk 0:00:38]}  fxg4 {[%clk 0:00:13]} 45. Qd3+ {[%clk 0:00:37]}  Kh8 {[%clk 0:00:13]} 46. Rg1 {[%clk 0:00:36]}  Qg5 {[%clk 0:00:10]} 47. Qd4+ {[%clk 0:00:33]}  Kh7 {[%clk 0:00:03]} 48. Rxg4 {[%clk 0:00:28]}  Rf1+ {[%clk 0:00:02]} 49. Ka2 {[%clk 0:00:27]}  Qxh6 {[%clk 0:00:03]} 50. Qd3+ {[%clk 0:00:26]}  Kh8 {[%clk 0:00:03]} 51. Qd4+ {[%clk 0:00:21]}  Kh7 {[%clk 0:00:00]} 52. Rh4 {[%clk 0:00:21]} 1-0


[Site "https://www.chess.com"]

[Event "Titled Tuesday Blitz August 15 Late 2023"]
[White "Blackburn, Jonathan L B"]
[Black "Nanu, Costica-Ciprian"]
[WhiteFideId "1801090"]
[BlackFideId "1204580"]
[WhiteElo "2433"]
[BlackElo "2555"]
[Result "0-1"]
[Round "10"]
[TimeControl "180+1"]
[Date "2023.08.15"]
[WhiteClock "0:00:02"]
[BlackClock "0:01:19"]
[Board "48"]

1. d4 {[%clk 0:03:00]}  Nf6 {[%clk 0:02:58]} 2. c4 {[%clk 0:03:01]}  e6 {[%clk 0:02:58]} 3. Nf3 {[%clk 0:03:00]}  b6 {[%clk 0:02:57]} 4. g3 {[%clk 0:02:55]}  Bb4+ {[%clk 0:02:56]} 5. Bd2 {[%clk 0:02:54]}  Be7 {[%clk 0:02:57]} 6. Bg2 {[%clk 0:02:54]}  c6 {[%clk 0:02:58]} 7. Nc3 {[%clk 0:02:52]}  d5 {[%clk 0:02:59]} 8. b3 {[%clk 0:02:49]}  O-O {[%clk 0:02:59]} 9. O-O {[%clk 0:02:49]}  Nbd7 {[%clk 0:02:57]} 10. Qc2 {[%clk 0:02:48]}  Ba6 {[%clk 0:02:57]} 11. Rfd1 {[%clk 0:02:42]}  Rc8 {[%clk 0:02:54]} 12. e4 {[%clk 0:02:40]}  dxe4 {[%clk 0:02:46]} 13. Nxe4 {[%clk 0:02:41]}  Nxe4 {[%clk 0:02:46]} 14. Qxe4 {[%clk 0:02:41]}  Nf6 {[%clk 0:02:46]} 15. Qe1 {[%clk 0:02:28]}  Qc7 {[%clk 0:02:41]} 16. Bf4 {[%clk 0:02:27]}  Bd6 {[%clk 0:02:42]} 17. Bxd6 {[%clk 0:02:23]}  Qxd6 {[%clk 0:02:41]} 18. Qe5 {[%clk 0:02:23]}  Rfd8 {[%clk 0:02:40]} 19. Rd2 {[%clk 0:02:10]}  Bb7 {[%clk 0:02:38]} 20. Rad1 {[%clk 0:02:10]}  h6 {[%clk 0:02:37]} 21. Qxd6 {[%clk 0:02:04]}  Rxd6 {[%clk 0:02:36]} 22. c5 {[%clk 0:02:00]}  bxc5 {[%clk 0:02:33]} 23. dxc5 {[%clk 0:02:01]}  Rxd2 {[%clk 0:02:30]} 24. Rxd2 {[%clk 0:01:32]}  Ne4 {[%clk 0:02:30]} 25. Rc2 {[%clk 0:01:32]}  Rd8 {[%clk 0:02:29]} 26. Kf1 {[%clk 0:01:28]}  Ba6+ {[%clk 0:02:28]} 27. Ke1 {[%clk 0:01:27]}  Bd3 {[%clk 0:02:11]} 28. Rc1 {[%clk 0:01:27]}  f6 {[%clk 0:02:12]} 29. Rd1 {[%clk 0:01:07]}  Nxc5 {[%clk 0:02:05]} 30. b4 {[%clk 0:01:01]}  Na6 {[%clk 0:01:42]} 31. a3 {[%clk 0:00:52]}  Rd5 {[%clk 0:01:39]} 32. Rd2 {[%clk 0:00:36]}  Be4 {[%clk 0:01:35]} 33. Rxd5 {[%clk 0:00:17]}  cxd5 {[%clk 0:01:35]} 34. Nh4 {[%clk 0:00:16]}  Bxg2 {[%clk 0:01:34]} 35. Nxg2 {[%clk 0:00:17]}  Kf7 {[%clk 0:01:34]} 36. Kd2 {[%clk 0:00:16]}  Ke7 {[%clk 0:01:34]} 37. Kd3 {[%clk 0:00:16]}  Kd6 {[%clk 0:01:34]} 38. Nf4 {[%clk 0:00:15]}  g5 {[%clk 0:01:29]} 39. Nh5 {[%clk 0:00:12]}  f5 {[%clk 0:01:28]} 40. f4 {[%clk 0:00:12]}  e5 {[%clk 0:01:26]} 41. fxg5 {[%clk 0:00:11]}  hxg5 {[%clk 0:01:26]} 42. h4 {[%clk 0:00:10]}  gxh4 {[%clk 0:01:25]} 43. gxh4 {[%clk 0:00:10]}  e4+ {[%clk 0:01:25]} 44. Kd4 {[%clk 0:00:09]}  Nc7 {[%clk 0:01:25]} 45. a4 {[%clk 0:00:08]}  Ne6+ {[%clk 0:01:26]} 46. Ke3 {[%clk 0:00:07]}  d4+ {[%clk 0:01:25]} 47. Ke2 {[%clk 0:00:06]}  f4 {[%clk 0:01:25]} 48. Nf6 {[%clk 0:00:05]}  Ke5 {[%clk 0:01:25]} 49. Nd7+ {[%clk 0:00:04]}  Kf5 {[%clk 0:01:22]} 50. b5 {[%clk 0:00:04]}  f3+ {[%clk 0:01:21]} 51. Ke1 {[%clk 0:00:04]}  e3 {[%clk 0:01:19]} 52. a5 {[%clk 0:00:04]}  d3 {[%clk 0:01:18]} 53. b6 {[%clk 0:00:04]}  axb6 {[%clk 0:01:18]} 54. axb6 {[%clk 0:00:04]}  f2+ {[%clk 0:01:19]} 55. Kf1 {[%clk 0:00:04]}  d2 {[%clk 0:01:18]} 56. b7 {[%clk 0:00:02]}  d1=Q+ {[%clk 0:01:18]} 57. Kg2 {[%clk 0:00:01]}  Qg1+ {[%clk 0:01:18]} 58. Kf3 {[%clk 0:00:02]}  f1=Q# {[%clk 0:01:19]} 0-1


[Site "https://www.chess.com"]

[Event "Titled Tuesday Blitz August 15 Late 2023"]
[White "chessmateto"]
[Black "Grossboss19"]
[WhiteElo "2430"]
[BlackElo "2554"]
[Result "0-1"]
[Round "10"]
[TimeControl "180+1"]
[Date "2023.08.15"]
[WhiteClock "0:00:37"]
[BlackClock "0:01:11"]
[Board "49"]

1. c4 {[%clk 0:03:00]}  Nf6 {[%clk 0:02:57]} 2. Nc3 {[%clk 0:03:01]}  c5 {[%clk 0:02:52]} 3. g3 {[%clk 0:02:59]}  g6 {[%clk 0:02:51]} 4. Bg2 {[%clk 0:03:00]}  Bg7 {[%clk 0:02:52]} 5. Nf3 {[%clk 0:03:00]}  O-O {[%clk 0:02:53]} 6. O-O {[%clk 0:03:00]}  a6 {[%clk 0:02:50]} 7. d4 {[%clk 0:02:59]}  cxd4 {[%clk 0:02:50]} 8. Nxd4 {[%clk 0:02:59]}  Nc6 {[%clk 0:02:49]} 9. e4 {[%clk 0:02:58]}  d6 {[%clk 0:02:47]} 10. Rb1 {[%clk 0:02:38]}  Bd7 {[%clk 0:02:43]} 11. Nc2 {[%clk 0:02:21]}  Rc8 {[%clk 0:02:41]} 12. f3 {[%clk 0:02:21]}  Ne5 {[%clk 0:02:30]} 13. b3 {[%clk 0:02:21]}  b5 {[%clk 0:02:29]} 14. f4 {[%clk 0:02:15]}  Neg4 {[%clk 0:02:29]} 15. h3 {[%clk 0:02:00]}  Qb6+ {[%clk 0:02:24]} 16. Qd4 {[%clk 0:01:23]}  Qxd4+ {[%clk 0:02:22]} 17. Nxd4 {[%clk 0:01:24]}  Nxe4 {[%clk 0:02:13]} 18. Nxe4 {[%clk 0:01:24]}  Bxd4+ {[%clk 0:02:11]} 19. Kh1 {[%clk 0:01:24]}  Nf6 {[%clk 0:02:08]} 20. Bb2 {[%clk 0:01:20]}  Bxb2 {[%clk 0:02:08]} 21. Rxb2 {[%clk 0:01:19]}  Nxe4 {[%clk 0:02:08]} 22. Bxe4 {[%clk 0:01:19]}  bxc4 {[%clk 0:02:08]} 23. Bb7 {[%clk 0:01:18]}  Bc6+ {[%clk 0:01:59]} 24. Bxc6 {[%clk 0:01:15]}  Rxc6 {[%clk 0:02:00]} 25. Rc1 {[%clk 0:01:14]}  Rfc8 {[%clk 0:01:59]} 26. bxc4 {[%clk 0:00:57]}  Rxc4 {[%clk 0:02:00]} 27. Rxc4 {[%clk 0:00:54]}  Rxc4 {[%clk 0:02:01]} 28. Kg2 {[%clk 0:00:51]}  d5 {[%clk 0:01:59]} 29. Kf3 {[%clk 0:00:51]}  e6 {[%clk 0:01:59]} 30. Kg4 {[%clk 0:00:47]}  Kg7 {[%clk 0:01:58]} 31. Kh4 {[%clk 0:00:46]}  h5 {[%clk 0:01:53]} 32. Kg5 {[%clk 0:00:45]}  Ra4 {[%clk 0:01:49]} 33. g4 {[%clk 0:00:37]}  f6+ {[%clk 0:01:43]} 34. Kh4 {[%clk 0:00:37]}  Rxf4 {[%clk 0:01:39]} 35. a4 {[%clk 0:00:38]}  Rxa4 {[%clk 0:01:34]} 36. Rb7+ {[%clk 0:00:37]}  Kh6 {[%clk 0:01:31]} 37. Rf7 {[%clk 0:00:37]}  g5+ {[%clk 0:01:27]} 38. Kg3 {[%clk 0:00:38]}  Ra3+ {[%clk 0:01:27]} 39. Kf2 {[%clk 0:00:38]}  Kg6 {[%clk 0:01:27]} 40. Re7 {[%clk 0:00:38]}  hxg4 {[%clk 0:01:27]} 41. Rxe6 {[%clk 0:00:38]}  gxh3 {[%clk 0:01:27]} 42. Kg1 {[%clk 0:00:38]}  d4 {[%clk 0:01:26]} 43. Kh1 {[%clk 0:00:38]}  a5 {[%clk 0:01:23]} 44. Re2 {[%clk 0:00:37]}  a4 {[%clk 0:01:22]} 45. Rd2 {[%clk 0:00:37]}  d3 {[%clk 0:01:21]} 46. Kh2 {[%clk 0:00:37]}  Kf5 {[%clk 0:01:22]} 47. Kxh3 {[%clk 0:00:37]}  Ke4 {[%clk 0:01:22]} 48. Kg3 {[%clk 0:00:38]}  Ke3 {[%clk 0:01:22]} 49. Rf2 {[%clk 0:00:39]}  d2 {[%clk 0:01:15]} 50. Rf3+ {[%clk 0:00:39]}  Ke2 {[%clk 0:01:14]} 51. Rxa3 {[%clk 0:00:40]}  d1=Q {[%clk 0:01:14]} 52. Kh2 {[%clk 0:00:40]}  Qd6+ {[%clk 0:01:14]} 53. Rg3 {[%clk 0:00:40]}  Kf2 {[%clk 0:01:12]} 54. Kh1 {[%clk 0:00:37]}  Kxg3 {[%clk 0:01:11]} 0-1


[Site "https://www.chess.com"]